bitfinex/quotes_SOLUSD_20240604
["timestamp","ask_amount","ask_price","bid_price","bid_amount"]
[1717510925151,2.2177,166.84,166.81,6.91]
[1717510925350,2.2177,166.84,166.82,6.91]
[1717510925662,2.2178,166.83,166.81,6.91]
[1717510928446,2.2177,166.84,166.81,6.91]
[1717510928660,2.2176,166.85,166.82,6.91]
[1717510928848,4.4348,166.87,166.8,0.34]
[1717510928849,4.4348,166.87,166.83,6.91]
[1717510929157,2.2176,166.85,166.83,6.91]
[1717510929354,4.4348,166.87,166.83,6.91]
[1717510929657,4.4349,166.86,166.8,0.34]
[1717510929966,2.2178,166.83,166.82,6.91]
[1717510930483,2.2175,166.85,166.82,7.08]
[1717510930639,2.2175,166.85,166.83,7.08]
[1717510931164,2.2175,166.85,166.84,6.91]
[1717510931343,2.2174,166.86,166.84,0.17]
[1717510931534,2.2175,166.85,166.84,0.17]
[1717510931763,2.2175,166.85,166.84,7.08]
[1717510931959,2.2174,166.86,166.84,7.08]
[1717510932270,2.2173,166.87,166.85,7.08]
[1717510932748,2.2173,166.87,166.86,6.91]
[1717510932946,2.2173,166.87,166.85,0.17]
[1717510933267,2.2173,166.87,166.86,6.91]
[1717510933442,2.2171,166.88,166.86,7.08]
[1717510933642,2.2171,166.88,166.85,0.17]
[1717510933643,2.2171,166.88,166.87,6.91]
[1717510933939,2.2171,166.88,166.87,7.08]
[1717510934677,2.2171,166.88,166.87,0.17]
[1717510935150,2.2171,166.88,166.86,6.91]
[1717510935863,6.6491,166.94,166.87,7.08]
[1717510936062,2.2171,166.89,166.88,6.91]
[1717510936263,2.2169,166.9,166.88,7.08]
[1717510936642,2.2169,166.9,166.89,0.17]
[1717510937340,4.4332,166.92,166.87,6.91]
[1717510937557,2.2171,166.89,166.87,6.91]
[1717510937759,2.2171,166.89,166.88,0.17]
[1717510938273,2.2169,166.9,166.88,0.17]
[1717510938854,2.2169,166.9,166.88,7.08]
[1717510939261,4.4333,166.92,166.86,6.91]
[1717510939449,2.2171,166.89,166.87,7.08]
[1717510940169,6.4844,166.95,166.8,50.0664]
[1717510940170,13.0785,166.91,166.8,35.95]
[1717510940355,4.4338,166.9,166.84,6.91]
[1717510940860,2.2173,166.87,166.85,6.91]
[1717510941250,2.2173,166.87,166.84,6.91]
[1717510941750,2.2173,166.87,166.85,0.17]
[1717510941959,2.2172,166.88,166.85,7.08]
[1717510942158,10.6018,166.92,166.87,6.91]
[1717510942459,2.2169,166.9,166.88,6.91]
[1717510942675,2.2167,166.92,166.88,6.91]
[1717510942873,4.4328,166.94,166.88,6.91]
[1717510943083,2.2167,166.91,166.88,6.91]
[1717510943286,2.2166,166.92,166.89,0.17]
[1717510943577,2.2166,166.92,166.9,6.91]
[1717510943759,2.2167,166.91,166.9,6.91]
[1717510944073,2.2167,166.91,166.9,7.08]
[1717510944448,2.2167,166.91,166.9,0.17]
[1717510944670,2.2167,166.92,166.86,2.2173]
[1717510944876,6.5237,166.96,166.85,41.9596]
[1717510945063,4.4324,166.95,166.86,2.2173]
[1717510945268,4.4324,166.95,166.9,6.91]
[1717510945469,2.2167,166.92,166.91,6.91]
[1717510945670,2.2167,166.92,166.9,6.91]
[1717510946174,2.2168,166.9,166.85,44.1771]
[1717510946356,2.2168,166.9,166.86,0.34]
[1717510946548,2.2168,166.91,166.89,6.91]
[1717510946780,2.2168,166.9,166.88,7.08]
[1717510947081,2.2171,166.88,166.86,6.91]
[1717510947288,4.4333,166.92,166.86,6.91]
[1717510948177,2.2171,166.89,166.86,6.91]
[1717510948383,2.2171,166.88,166.87,0.17]
[1717510948676,4.4328,166.94,166.87,0.17]
[1717510948858,2.2168,166.91,166.88,6.91]
[1717510949052,19.8205,166.96,166.88,6.91]
[1717510949265,11.3424,166.95,166.89,7.08]
[1717510949581,2.2166,166.92,166.9,6.91]
[1717510949964,4.4328,166.94,166.85,2.2175]
[1717510950173,11.3428,166.94,166.87,6.91]
[1717510950371,2.2169,166.9,166.87,6.91]
[1717510950568,2.2167,166.91,166.88,6.91]
[1717510951379,11.343,166.93,166.87,0.17]
[1717510951553,6.91,166.93,166.87,6.91]
[1717510951861,2.2173,166.87,166.85,6.91]
[1717510952380,2.217,166.9,166.86,6.91]
[1717510952579,2.217,166.89,166.86,6.91]
[1717510953084,2.2171,166.88,166.86,6.91]
[1717510953392,4.4332,166.92,166.86,6.91]
[1717510953393,2.2169,166.9,166.86,6.91]
[1717510953781,15.0788,166.94,166.85,0.17]
[1717510953782,26.4215,166.94,166.87,7.08]
[1717510953982,2.2168,166.91,166.88,6.91]
[1717510954575,2.2169,166.9,166.87,0.17]
[1717510954894,2.2169,166.9,166.88,6.91]
[1717510955892,2.2167,166.91,166.88,6.91]
[1717510956066,2.2167,166.91,166.89,0.17]
[1717510957369,2.2168,166.9,166.89,0.17]
[1717510958294,2.2168,166.91,166.89,0.17]
[1717510958696,2.2168,166.9,166.89,0.17]
[1717510959783,2.217,166.89,166.88,0.17]
[1717510959972,2.217,166.89,166.87,0.17]
[1717510960173,2.2171,166.88,166.83,2.2178]
[1717510960415,2.217,166.89,166.83,2.2178]
[1717510960581,2.217,166.89,166.86,6.91]
[1717510961182,2.2169,166.9,166.81,42.6035]
[1717510961405,2.2169,166.9,166.88,6.91]
[1717510961981,2.217,166.89,166.87,7.08]
[1717510962292,2.2169,166.9,166.87,7.08]
[1717510962595,2.2169,166.9,166.88,6.91]
[1717510962807,2.2169,166.9,166.89,0.17]
[1717510963111,2.2168,166.91,166.88,6.91]
[1717510963275,4.4325,166.95,166.89,7.08]
[1717510963479,4.4325,166.95,166.89,0.17]
[1717510963480,2.2168,166.91,166.89,0.17]
[1717510965211,2.2168,166.9,166.89,0.17]
[1717510966092,2.2168,166.91,166.89,0.17]
[1717510966611,4.4327,166.94,166.86,2.3873]
[1717510966612,2.2169,166.9,166.86,0.17]
[1717510966801,2.2169,166.9,166.88,6.91]
[1717510967276,2.2169,166.9,166.89,6.91]
[1717510967678,2.2169,166.9,166.89,7.08]
[1717510967992,2.2168,166.91,166.89,7.08]
[1717510969313,2.2168,166.9,166.89,0.17]
[1717510970211,2.217,166.89,166.88,6.91]
[1717510970604,2.2169,166.9,166.88,6.91]
[1717510971412,2.217,166.89,166.87,6.91]
[1717510971711,2.217,166.89,166.88,6.91]
[1717510971917,2.217,166.89,166.87,6.91]
[1717510972083,2.2169,166.9,166.88,6.91]
[1717510972809,2.2169,166.9,166.87,6.91]
[1717510973009,2.2169,166.9,166.88,6.91]
[1717510974115,2.2169,166.9,166.87,6.91]
[1717510974889,2.217,166.89,166.86,0.17]
[1717510975211,2.2169,166.9,166.87,6.91]
[1717510975792,2.2169,166.9,166.88,6.91]
[1717510975992,4.433,166.93,166.87,6.91]
[1717510976390,4.433,166.93,166.88,6.91]
[1717510976625,2.2169,166.9,166.88,6.91]
[1717510977034,2.2169,166.9,166.87,6.91]
[1717510977902,2.2169,166.9,166.88,0.17]
[1717510981617,4.433,166.93,166.88,0.17]
[1717510981825,2.2167,166.91,166.88,7.08]
[1717510983229,2.2167,166.91,166.89,6.91]
[1717510983912,2.2166,166.92,166.9,7.08]
[1717510984811,2.2166,166.92,166.9,7.08]
[1717510985724,4.432,166.97,166.91,6.91]
[1717510985914,2.2166,166.92,166.9,0.17]
[1717510986233,2.2167,166.91,166.9,0.17]
[1717510986731,2.2165,166.93,166.9,7.08]
[1717510986901,2.2165,166.93,166.91,6.91]
[1717510987222,4.4324,166.95,166.9,0.17]
[1717510987436,11.3424,166.95,166.9,0.17]
[1717510987728,2.2167,166.92,166.9,0.17]
[1717510988606,2.2165,166.93,166.9,0.17]
[1717510989423,2.2166,166.92,166.9,0.17]
[1717510990406,2.2167,166.91,166.9,0.17]
[1717510990602,2.2167,166.91,166.89,7.25]
[1717510991215,2.2166,166.92,166.89,7.25]
[1717510992642,2.2166,166.92,166.89,0.34]
[1717510992847,2.2166,166.92,166.89,0.17]
[1717510993017,2.2166,166.92,166.89,6.91]
[1717510993210,2.2166,166.92,166.9,0.17]
[1717510993606,2.2165,166.93,166.9,0.17]
[1717510994334,2.2164,166.94,166.9,0.17]
[1717510994546,2.2162,166.95,166.91,6.91]
[1717510994841,2.2162,166.95,166.92,0.17]
[1717510995139,2.2162,166.95,166.92,7.08]
[1717510996626,2.2163,166.94,166.92,7.08]
[1717510996939,2.2163,166.94,166.92,0.17]
[1717510997241,2.2163,166.94,166.91,0.34]
[1717510998037,2.2162,166.95,166.91,7.25]
[1717510998236,2.2162,166.95,166.91,0.34]
[1717510998414,2.2163,166.94,166.91,0.34]
[1717510998724,2.2163,166.94,166.92,0.34]
[1717510999038,2.2163,166.94,166.9,7.25]
[1717510999620,6.91,166.97,166.9,9.4668]
[1717510999818,11.3418,166.98,166.91,6.91]
[1717511000117,11.3418,166.98,166.92,0.17]
[1717511000541,2.2163,166.95,166.92,0.17]
[1717511001439,2.2164,166.94,166.92,0.17]
[1717511002321,2.2162,166.95,166.92,0.34]
[1717511002534,2.2162,166.95,166.91,0.17]
[1717511002840,2.2162,166.95,166.91,7.08]
[1717511003042,2.2162,166.95,166.92,0.17]
[1717511003935,2.2162,166.95,166.91,0.34]
[1717511004546,2.2163,166.94,166.91,0.34]
[1717511004741,2.2163,166.94,166.92,0.17]
[1717511004945,2.2163,166.94,166.9,0.34]
[1717511004946,2.2163,166.94,166.9,7.25]
[1717511005449,2.2165,166.93,166.88,2.2171]
[1717511005749,2.2165,166.93,166.88,9.1271]
[1717511005948,2.2165,166.93,166.89,6.91]
[1717511006537,2.2166,166.92,166.89,6.91]
[1717511006732,2.2165,166.93,166.9,0.17]
[1717511007752,2.2165,166.93,166.9,0.34]
[1717511008529,2.2166,166.92,166.9,0.34]
[1717511010536,2.2166,166.92,166.9,0.17]
[1717511010740,2.2165,166.93,166.9,0.17]
[1717511011557,2.2166,166.92,166.9,0.17]
[1717511012245,2.2166,166.92,166.89,0.34]
[1717511012456,2.2166,166.92,166.87,38.1672]
[1717511012457,6.91,166.94,166.86,8.3227]
[1717511012661,2.2166,166.92,166.87,6.91]
[1717511013061,2.2167,166.91,166.87,6.91]
[1717511013239,2.2167,166.91,166.86,2.2173]
[1717511013581,2.2167,166.91,166.87,6.91]
[1717511013879,9.1266,166.93,166.87,9.1272]
[1717511014169,2.2166,166.92,166.88,0.17]
[1717511015065,2.2167,166.91,166.88,0.17]
[1717511015450,2.2167,166.91,166.87,0.34]
[1717511015865,2.2169,166.9,166.87,0.34]
[1717511016071,2.2169,166.9,166.87,0.17]
[1717511016251,2.217,166.89,166.82,6.4209]
[1717511016445,2.217,166.89,166.85,6.91]
[1717511016865,6.91,166.91,166.81,51.3067]
[1717511016866,2.2171,166.88,166.81,51.3067]
[1717511017064,2.217,166.89,166.83,2.2178]
[1717511017268,2.217,166.89,166.85,6.91]
[1717511017456,2.217,166.89,166.83,2.2178]
[1717511017457,2.217,166.89,166.84,6.91]
[1717511018047,6.91,166.9,166.81,2.2179]
[1717511018360,6.91,166.9,166.83,6.91]
[1717511018780,6.91,166.91,166.84,6.91]
[1717511019276,2.2171,166.88,166.85,0.17]
[1717511019649,2.2173,166.87,166.84,6.91]
[1717511020159,2.2172,166.88,166.84,6.91]
[1717511020548,2.2172,166.88,166.83,0.17]
[1717511020747,2.2172,166.88,166.84,6.91]
[1717511021068,2.2174,166.86,166.8,2.2181]
[1717511021379,2.2178,166.84,166.8,6.91]
[1717511021674,2.2178,166.84,166.79,9.1283]
[1717511022147,2.2176,166.85,166.79,2.2183]
[1717511022346,2.2176,166.85,166.8,9.1282]
[1717511022542,2.2176,166.85,166.8,2.2182]
[1717511022777,8.7811,166.84,166.81,0.17]
[1717511023283,2.2177,166.84,166.8,0.17]
[1717511023844,2.2178,166.83,166.79,0.34]
[1717511024277,2.2176,166.85,166.79,2.5582]
[1717511024586,2.2177,166.84,166.79,9.4682]
[1717511025466,2.2176,166.85,166.8,6.91]
[1717511025764,2.2176,166.85,166.81,0.17]
[1717511025965,2.2177,166.84,166.81,0.17]
[1717511026358,2.2178,166.83,166.79,6.91]
[1717511026678,2.218,166.82,166.78,6.91]
[1717511027047,4.4352,166.85,166.78,6.91]
[1717511027048,2.2178,166.83,166.78,6.91]
[1717511027665,2.2179,166.82,166.78,6.91]
[1717511027875,2.2179,166.82,166.77,2.3885]
[1717511028080,11.3452,166.85,166.77,2.3885]
[1717511028081,2.2181,166.81,166.78,0.17]
[1717511028590,6.91,166.84,166.78,0.17]
[1717511028791,2.2179,166.83,166.78,6.91]
[1717511028995,2.2179,166.83,166.79,0.17]
[1717511029198,2.2179,166.83,166.79,0.34]
[1717511029377,2.2176,166.85,166.8,6.91]
[1717511029577,4.4346,166.87,166.81,7.08]
[1717511029785,2.2177,166.84,166.82,0.17]
[1717511030092,2.2175,166.85,166.82,0.17]
[1717511031086,2.2177,166.84,166.82,0.17]
[1717511031266,2.2174,166.86,166.82,7.08]
[1717511031475,2.2175,166.85,166.82,7.08]
[1717511032978,2.2174,166.87,166.83,7.08]
[1717511033178,2.2174,166.87,166.84,0.17]
[1717511033603,17.8533,166.89,166.84,0.17]
[1717511033807,2.2175,166.85,166.84,0.17]
[1717511034114,2.2173,166.87,166.84,0.17]
[1717511034284,2.2173,166.87,166.83,0.17]
[1717511034481,2.2174,166.86,166.83,0.17]
[1717511034675,2.2172,166.87,166.84,6.91]
[1717511034906,2.2172,166.87,166.83,7.08]
[1717511035306,2.2174,166.86,166.83,0.17]
[1717511035496,2.2174,166.86,166.81,0.17]
[1717511035687,2.2174,166.86,166.83,6.91]
[1717511036002,2.2174,166.86,166.84,0.17]
[1717511036486,2.2173,166.87,166.84,0.17]
[1717511036804,2.2173,166.87,166.84,7.08]
[1717511036980,2.2174,166.86,166.84,7.08]
[1717511037478,2.2174,166.86,166.84,0.17]
[1717511038307,4.434,166.89,166.84,0.17]
[1717511038597,2.2175,166.86,166.84,0.17]
[1717511038997,2.2175,166.85,166.84,0.17]
[1717511039500,2.2175,166.85,166.83,0.17]
[1717511039698,17.7754,166.89,166.83,0.17]
[1717511039699,2.2174,166.86,166.83,0.17]
[1717511041308,2.2175,166.85,166.83,0.17]
[1717511042084,2.2175,166.85,166.83,7.08]
[1717511042501,2.2174,166.86,166.83,7.08]
[1717511042705,2.2174,166.86,166.84,6.91]
[1717511043087,6.4314,166.89,166.84,6.91]
[1717511043400,2.2173,166.87,166.84,6.91]
[1717511043811,2.2173,166.87,166.85,0.17]
[1717511044188,2.2173,166.87,166.85,7.08]
[1717511044392,2.217,166.89,166.86,6.91]
[1717511044595,2.217,166.89,166.88,6.91]
[1717511045385,2.2171,166.88,166.87,0.17]
[1717511045584,2.2171,166.88,166.87,7.08]
[1717511045886,2.217,166.89,166.87,7.08]
[1717511046416,2.217,166.89,166.88,6.91]
[1717511046590,2.217,166.89,166.88,7.08]
[1717511048218,2.217,166.89,166.88,0.17]
[1717511049824,2.2169,166.9,166.88,7.08]
[1717511050029,2.2169,166.9,166.89,0.17]
[1717511050540,19.3105,166.94,166.89,0.17]
[1717511050723,13.2986,166.94,166.89,7.25]
[1717511050914,2.2167,166.92,166.89,7.08]
[1717511051736,4.4328,166.94,166.9,0.17]
[1717511052854,2.2167,166.92,166.9,0.17]
[1717511053355,2.2167,166.92,166.89,7.08]
[1717511053544,2.2168,166.91,166.89,7.08]
[1717511053932,2.2166,166.92,166.89,7.08]
[1717511055249,2.2167,166.91,166.89,7.08]
[1717511056250,2.2167,166.91,166.89,0.17]
[1717511057743,2.2166,166.92,166.89,0.17]
[1717511058644,2.2166,166.92,166.89,7.08]
[1717511058850,2.2166,166.92,166.9,0.17]
[1717511059248,2.2166,166.92,166.9,7.08]
[1717511059466,17.9906,166.96,166.91,0.17]
[1717511059846,2.2165,166.93,166.91,0.17]
[1717511060752,2.2164,166.94,166.91,0.17]
[1717511061339,4.4323,166.96,166.91,0.17]
[1717511061540,2.2164,166.93,166.91,0.17]
[1717511062139,2.2164,166.93,166.91,7.08]
[1717511062561,2.2164,166.94,166.91,7.08]
[1717511063270,2.2165,166.93,166.91,0.17]
[1717511063447,2.2165,166.93,166.91,7.08]
[1717511064050,2.2164,166.94,166.91,7.08]
[1717511064254,2.2164,166.94,166.92,0.17]
[1717511064467,2.2162,166.95,166.92,0.17]
[1717511064763,2.2162,166.95,166.91,0.34]
[1717511064961,2.2163,166.94,166.91,0.34]
[1717511065167,2.2163,166.94,166.92,0.17]
[1717511065369,2.2163,166.94,166.91,6.91]
[1717511065551,2.2163,166.94,166.92,0.34]
[1717511066156,11.342,166.97,166.92,0.17]
[1717511066352,2.2164,166.94,166.92,0.17]
[1717511066570,2.2164,166.94,166.91,0.34]
[1717511066944,2.2164,166.94,166.91,7.25]
[1717511067345,2.2164,166.94,166.91,0.34]
[1717511067772,2.2165,166.93,166.91,0.34]
[1717511068466,2.2166,166.92,166.9,0.34]
[1717511068663,2.2164,166.94,166.9,0.34]
[1717511068862,2.2166,166.93,166.87,51.8279]
[1717511069171,2.2166,166.93,166.89,6.91]
[1717511069546,2.2166,166.92,166.89,6.91]
[1717511069967,2.2166,166.92,166.87,2.2171]
[1717511070169,2.2166,166.92,166.88,7.08]
[1717511070572,2.2166,166.92,166.88,0.17]
[1717511070778,2.2167,166.91,166.88,0.17]
[1717511071073,2.2169,166.9,166.87,0.17]
[1717511071286,2.2167,166.91,166.87,7.08]
[1717511071856,2.2168,166.9,166.87,7.08]
[1717511072579,2.2168,166.91,166.87,7.08]
[1717511073161,4.433,166.93,166.87,0.17]
[1717511073486,2.217,166.89,166.87,0.17]
[1717511073782,2.2169,166.9,166.87,0.17]
[1717511074574,2.217,166.89,166.87,0.17]
[1717511075269,2.217,166.89,166.86,0.17]
[1717511075585,2.2167,166.92,166.86,9.2973]
[1717511075764,6.91,166.93,166.86,9.2973]
[1717511076082,2.2166,166.92,166.87,6.91]
[1717511076257,2.2169,166.9,166.88,0.17]
[1717511077094,2.2168,166.91,166.88,0.17]
[1717511077382,2.2169,166.9,166.88,0.17]
[1717511077687,2.217,166.9,166.86,6.91]
[1717511077989,2.217,166.9,166.87,0.17]
[1717511078164,2.217,166.89,166.86,0.17]
[1717511078463,2.2172,166.88,166.86,0.17]
[1717511079276,2.2172,166.88,166.85,0.34]
[1717511080264,2.2172,166.88,166.85,7.25]
[1717511080488,2.2171,166.88,166.85,0.34]
[1717511080695,2.2171,166.88,166.84,0.34]
[1717511080993,2.2172,166.88,166.86,0.17]
[1717511081296,2.2174,166.86,166.83,6.91]
[1717511081872,2.2173,166.87,166.8,35.95]
[1717511082194,2.2174,166.86,166.81,2.218]
[1717511082372,2.2175,166.85,166.83,6.91]
[1717511082573,2.2174,166.87,166.83,6.91]
[1717511082774,2.2174,166.86,166.81,2.218]
[1717511082974,2.2174,166.86,166.83,6.91]
[1717511083189,2.2174,166.86,166.84,0.17]
[1717511083381,2.2173,166.87,166.84,0.17]
[1717511083700,2.2173,166.87,166.84,7.08]
[1717511083876,2.2173,166.87,166.84,0.17]
[1717511084069,2.2173,166.87,166.84,7.25]
[1717511084888,2.2173,166.87,166.85,6.91]
[1717511085091,2.2173,166.87,166.86,0.17]
[1717511085471,10.9465,166.91,166.86,0.17]
[1717511085672,4.4336,166.91,166.86,0.34]
[1717511086000,2.2171,166.89,166.86,7.25]
[1717511086305,2.2171,166.89,166.87,6.91]
[1717511086489,2.2171,166.89,166.88,0.17]
[1717511087305,2.2168,166.91,166.88,7.08]
[1717511087618,2.2169,166.9,166.88,7.08]
[1717511088915,19.7005,166.95,166.88,0.17]
[1717511088916,10.5743,166.95,166.88,0.17]
[1717511089118,2.2167,166.92,166.89,6.91]
[1717511089324,2.2167,166.92,166.9,0.17]
[1717511089804,2.2167,166.91,166.9,0.17]
[1717511091601,2.2167,166.91,166.89,0.34]
[1717511091801,2.2167,166.91,166.89,7.25]
[1717511092523,2.2167,166.91,166.89,0.34]
[1717511093425,2.2167,166.91,166.89,7.25]
[1717511093622,2.2168,166.9,166.89,0.17]
[1717511093994,2.2168,166.9,166.88,0.34]
[1717511094207,2.2168,166.9,166.88,7.25]
[1717511094605,2.2168,166.91,166.88,7.25]
[1717511094808,2.2169,166.9,166.88,0.34]
[1717511095110,2.2168,166.91,166.88,7.25]
[1717511095311,2.2168,166.91,166.88,0.34]
[1717511095514,2.2168,166.91,166.88,7.25]
[1717511096095,2.2169,166.9,166.88,7.25]
[1717511096327,2.2168,166.91,166.88,7.25]
[1717511096900,2.2169,166.9,166.88,7.25]
[1717511097192,2.2169,166.9,166.88,0.34]
[1717511098728,2.2167,166.91,166.88,7.25]
[1717511099406,2.2167,166.91,166.88,7.311523]
[1717511099614,2.2167,166.91,166.88,7.141523]
[1717511100040,2.2167,166.91,166.89,6.91]
[1717511100336,4.4328,166.94,166.88,7.141523]
[1717511100337,2.2168,166.9,166.88,7.141523]
[1717511100917,2.2168,166.9,166.88,0.231523]
[1717511101114,2.2168,166.91,166.88,0.231523]
[1717511101732,2.2168,166.91,166.89,6.91]
[1717511101931,11.0808,166.96,166.9,6.91]
[1717511102111,11.0808,166.96,166.91,7.08]
[1717511102112,2.2165,166.93,166.91,7.08]
[1717511102310,2.2165,166.93,166.91,0.17]
[1717511102535,2.2166,166.92,166.91,7.08]
[1717511102738,2.2164,166.94,166.91,7.08]
[1717511102939,2.2165,166.93,166.91,7.08]
[1717511103315,2.2164,166.94,166.91,7.08]
[1717511103733,2.2164,166.94,166.92,0.17]
[1717511104232,2.216,166.97,166.92,0.17]
[1717511104442,2.2161,166.96,166.94,6.91]
[1717511104837,4.4315,166.99,166.94,6.91]
[1717511105020,4.4315,166.99,166.93,7.08]
[1717511105223,2.216,166.97,166.93,7.08]
[1717511105424,2.2161,166.96,166.93,7.08]
[1717511106446,2.2159,166.97,166.93,7.08]
[1717511106952,2.2159,166.97,166.94,6.91]
[1717511107123,2.2159,166.97,166.95,0.17]
[1717511109240,2.2159,166.97,166.95,0.34]
[1717511111045,2.216,166.96,166.95,0.34]
[1717511111425,2.216,166.97,166.95,0.34]
[1717511112618,2.2158,166.98,166.95,0.34]
[1717511112819,6.34470165,167.0,166.96,6.91]
[1717511112820,2.2157,166.99,166.96,6.91]
[1717511113127,2.2157,166.99,166.97,0.17]
[1717511113733,2.2157,166.99,166.97,7.25]
[1717511114152,2.2158,166.98,166.97,0.34]
[1717511115158,2.2157,166.99,166.97,0.34]
[1717511116756,2.2157,166.99,166.97,0.17]
[1717511117048,8.56030165,167.0,166.97,0.17]
[1717511117257,8.56030165,167.0,166.98,6.91]
[1717511117629,8.56030165,167.0,166.99,0.17]
[1717511118856,6.34470165,167.0,166.99,7.08]
[1717511119156,6.34470165,167.0,166.99,7.25]
[1717511119857,8.56020165,167.0,166.99,0.34]
[1717511120034,8.56020165,167.0,166.98,7.25]
[1717511121035,6.34470165,167.0,166.98,7.25]
[1717511121253,8.56020165,167.0,166.98,7.25]
[1717511121637,8.56020165,167.0,166.98,0.34]
[1717511121840,2.2157,166.99,166.98,0.34]
[1717511122346,8.56030165,167.0,166.98,0.17]
[1717511122543,8.56030165,167.0,166.99,0.17]
[1717511123164,6.34470165,167.0,166.99,0.17]
[1717511123535,6.34470165,167.0,166.99,0.34]
[1717511123849,8.56020165,167.0,166.99,0.34]
[1717511124039,8.56020165,167.0,166.99,0.17]
[1717511124241,6.34470165,167.0,166.98,0.34]
[1717511124456,8.56030165,167.0,166.98,0.34]
[1717511124765,6.34470165,167.0,166.98,0.34]
[1717511125345,8.56020165,167.0,166.98,0.34]
[1717511125537,6.34470165,167.0,166.98,0.34]
[1717511125866,6.34470165,167.0,166.96,6.91]
[1717511126661,2.2157,166.99,166.96,6.91]
[1717511126969,8.56020165,167.0,166.97,6.91]
[1717511127155,8.56020165,167.0,166.98,0.34]
[1717511127350,8.56020165,167.0,166.98,7.25]
[1717511127749,6.34470165,167.0,166.99,35.95]
[1717511127962,6.34470165,167.0,166.99,43.2]
[1717511129266,6.34470165,167.0,166.99,0.17]
[1717511129453,6.34470165,167.0,166.99,9.2957]
[1717511129770,6.34470165,167.0,166.99,7.08]
[1717511129950,6.34470165,167.0,166.99,49.4382]
[1717511130271,6.34470165,167.0,166.99,42.5282]
[1717511130780,6.34470165,167.0,166.99,58.4131]
[1717511131140,6.34470165,167.0,166.99,60.6288]
[1717511131348,6.34470165,167.0,166.99,67.5388]
[1717511132860,6.34470165,167.0,166.99,67.5388]
[1717511133397,6.34470165,167.0,166.99,65.3231]
[1717511134088,6.34470165,167.0,166.99,67.5388]
[1717511134258,6.34470165,167.0,166.99,65.3231]
[1717511134457,6.34470165,167.0,166.99,67.5388]
[1717511134661,6.34470165,167.0,166.99,58.4131]
[1717511134878,6.34470165,167.0,166.99,65.3231]
[1717511135191,6.34470165,167.0,166.99,36.29]
[1717511135396,6.34470165,167.0,166.99,43.2]
[1717511136681,6.34470165,167.0,166.99,45.4157]
[1717511137176,6.34470165,167.0,166.99,51.5365]
[1717511137994,6.34470165,167.0,166.99,67.2378]
[1717511139781,6.34470165,167.0,166.99,71.6692]